fUSD/lending_fUSD_20250724
["ID","MTS","AMOUNT","RATE_DAILY","PERIOD"]
[374596729,1753368652814,-400.0,0.00035,5]
[374596730,1753368652824,-250.0,0.00035,7]
[374596731,1753368652834,-15953.573,0.00035,7]
[374596732,1753368652844,-12663.0,0.00035,120]
[374596733,1753368652854,-209.0,0.00035,2]
[374596734,1753368652864,-209.0,0.00035,2]
[374596735,1753368652874,-209.0,0.00035,2]
[374596736,1753368652889,-165697.29613531,0.00035,30]
[374596737,1753368652909,-276.0,0.00035,2]
[374596738,1753368652919,-225.0,0.00035,2]
[374596739,1753368652929,-156.868073,0.00035,7]
[374596740,1753368652942,-151.0,0.00035,7]
[374596741,1753368652952,-163.082491,0.00035,7]
[374596742,1753368652962,-151.0,0.00035,7]
[374596743,1753368652972,-221.363905,0.00035,7]
[374596744,1753368652982,-151.0,0.00035,7]
[374596745,1753368652992,-151.0,0.00035,7]
[374596746,1753368653002,-151.0,0.00035,7]
[374596747,1753368653012,-836.309999,0.00035,2]
[374596748,1753368653023,-1324.70962813,0.00035,30]
[374596749,1753368653033,-1864.75389941,0.00035,2]
[374596750,1753368653043,-226.0,0.00035,2]
[374596751,1753368653053,-839.91269601,0.00035,3]
[374596752,1753368653064,-839.91269601,0.00035,30]
[374596753,1753368653074,-839.91269601,0.00035,120]
[374596754,1753368653084,-2000.0,0.00035,2]
[374596755,1753368653094,-200.0,0.00035,2]
[374596756,1753368653104,-151.0,0.00035,7]
[374596757,1753368653114,-151.0,0.00035,7]
[374596758,1753368653124,-151.0,0.00035,7]
[374596759,1753368653134,-151.0,0.00035,7]
[374596760,1753368653144,-151.0,0.00035,7]
[374596761,1753368653154,-151.0,0.00035,7]
[374596762,1753368653165,-246.380443,0.00035,7]
[374596763,1753368653174,-151.0,0.00035,7]
[374596764,1753368653184,-151.0,0.00035,7]
[374596765,1753368653193,-151.0,0.00035,7]
[374596766,1753368653203,-1000.0,0.00035,2]
[374596767,1753368653213,-900.0,0.00035,36]
[374596768,1753368653222,-215.317448,0.00035,7]
[374596769,1753368653233,-215.317448,0.00035,7]
[374596770,1753368653242,-215.317448,0.00035,7]
[374596771,1753368653252,-215.317448,0.00035,7]
[374596772,1753368653262,-150.0,0.00035,14]
[374596773,1753368653271,-397.362853,0.00035,7]
[374596774,1753368653281,-397.362853,0.00035,7]
[374596775,1753368653291,-207.196132,0.00035,7]
[374596776,1753368653300,-207.196132,0.00035,7]
[374596777,1753368653311,-207.196132,0.00035,7]
[374596778,1753368653321,-207.196132,0.00035,7]
[374596779,1753368653330,-151.0,0.00035,7]
[374596780,1753368653340,-151.0,0.00035,7]
[374596781,1753368653350,-200.0,0.00035,2]
[374596782,1753368653359,-150.16,0.00035,2]
[374596783,1753368653370,-151.0,0.00035,7]
[374596784,1753368653379,-151.0,0.00035,7]
[374596785,1753368653389,-151.0,0.00035,7]
[374596786,1753368653399,-151.0,0.00035,7]
[374596787,1753368653408,-151.0,0.00035,7]
[374596788,1753368653418,-151.0,0.00035,7]
[374596789,1753368653428,-151.0,0.00035,7]
[374596790,1753368653438,-151.0,0.00035,7]
[374596791,1753368653448,-743.393678,0.00035,7]
[374596792,1753368653458,-743.393678,0.00035,7]
[374596793,1753368653468,-743.393678,0.00035,7]
[374596794,1753368653478,-743.393678,0.00035,7]
[374596795,1753368653488,-255.68,0.00035,7]
[374596796,1753368653497,-1500.0,0.00035,2]
[374596797,1753368653507,-1500.0,0.00035,2]
[374596798,1753368653517,-1500.0,0.00035,2]
[374596799,1753368653527,-1500.0,0.00035,2]
[374596800,1753368653538,-1500.0,0.00035,2]
[374596801,1753368653548,-1000.0,0.00035,7]
[374596802,1753368653558,-1500.0,0.00035,2]
[374596803,1753368653569,-1500.0,0.00035,2]
[374596804,1753368653579,-1500.00002574,0.00035,2]
[374596805,1753368653589,-255.62009698,0.00035,12]
[374596806,1753368653599,-348569.22480879,0.00035,7]
[374596807,1753368653610,-151.0,0.00035005,7]
[374596808,1753368653619,-151.0,0.00035005,7]
[374596809,1753368653630,-743.393678,0.00035005,7]
[374596810,1753368653639,-743.393688,0.00035005,7]
[374596811,1753368653650,-799.999999,0.0003501,2]
[374596812,1753368653661,-1083.0,0.00035019,5]
[374596813,1753368653670,-150.0,0.0003502,3]
[374596814,1753368653680,-500.0,0.00035021,5]
[374596815,1753368653690,-815.78533023,0.00035052,2]
[374596816,1753368653700,-168.0,0.00035062,2]
[374596817,1753368653709,-500.0,0.00035068,14]
[374596818,1753368653720,-500.0,0.00035068,14]
[374596819,1753368653731,-500.0,0.00035068,14]
[374596820,1753368653743,-500.0,0.00035068,14]
[374596821,1753368653755,-500.0,0.00035068,14]
[374596822,1753368653764,-500.0,0.00035068,14]
[374596823,1753368653774,-500.0,0.00035068,14]
[374596824,1753368653784,-500.0,0.00035068,14]
[374596825,1753368653793,-629.18,0.00035068,14]
[374596826,1753368653803,-150.0,0.00035069,2]
[374596827,1753368653815,-200.0,0.00035069,2]
[374596828,1753368653825,-200.0,0.00035069,2]
[374596829,1753368653835,-200.0,0.00035069,2]
[374596830,1753368653845,-500.0,0.00035069,2]
[374596831,1753368653855,-500.0,0.00035069,2]
[374596832,1753368653866,-150.0,0.00035069,2]
[374596833,1753368653878,-500.0,0.00035069,2]
[374596834,1753368653892,-200.0,0.00035069,2]
[374596835,1753368653903,-200.99566156,0.00035069,2]
[374596836,1753368653914,-200.0,0.00035069,2]
[374596837,1753368653924,-200.0,0.00035069,2]
[374596838,1753368653934,-200.0,0.00035069,2]
[374596839,1753368653944,-200.0,0.00035069,2]
[374596840,1753368653954,-200.0,0.00035069,2]
[374596841,1753368653966,-500.0,0.00035069,2]
[374596842,1753368653976,-200.0,0.00035069,2]
[374596843,1753368653986,-500.0,0.00035069,2]
[374596844,1753368653996,-1615.00424835,0.00035071,2]
[374596845,1753368654006,-605.1,0.00035075,11]
[374596846,1753368654016,-45791.65,0.00035075,11]
[374596847,1753368654026,-1256.95,0.00035075,30]
[374596848,1753368654036,-1256.95,0.00035075,30]
[374596849,1753368654046,-512.5,0.0003508,32]
[374596850,1753368654058,-305.20023,0.00035088,7]
[374596851,1753368654069,-1030.53672895,0.00035093,7]
[374596852,1753368654079,-2456.78322403,0.00035094,2]
[374596853,1753368654091,-152.58,0.00035096,2]
[374596854,1753368654101,-300.0,0.00035099,10]
[374596855,1753368654111,-1474.49,0.000351,14]
[374596856,1753368654121,-34295.27,0.000351,14]
[374596857,1753368654130,-168.0,0.00035112,2]
[374596858,1753368654140,-7000.0,0.0003513,2]
[374596859,1753368654150,-10457.1877746,0.00035134,2]
[374596860,1753368654159,-65821.2436552,0.00035134,2]
[374596861,1753368654170,-3191.026441,0.00035134,2]
[374596862,1753368654180,-2514.5988464,0.00035134,2]
[374596863,1753368654189,-366.19870292,0.00035135,2]
[374596864,1753368654199,-168.0,0.00035143,2]
[374596865,1753368654209,-1615.00424835,0.00035153,2]
[374596866,1753368654219,-52267.2335185,0.00035158,2]
[374596867,1753368654228,-769.3751712,0.00035158,2]
[374596868,1753368654238,-10497.5760119,0.00035158,2]
[374596869,1753368654247,-64379.9954866,0.00035158,2]
[374596870,1753368654258,-3121.154455,0.00035158,2]
[374596871,1753368654268,-2130.4810984,0.00035158,2]
[374596872,1753368654277,-504.22,0.0003516,2]
[374596873,1753368654287,-1860.0,0.00035168,2]
[374596874,1753368654297,-2958.23208119,0.00035169,2]
[374596875,1753368654307,-512.5,0.0003518,56]
[374596876,1753368654317,-47082.2154505,0.00035182,2]
[374596877,1753368654327,-40334.6417736,0.00035182,2]
[374596878,1753368654337,-33587.0680966,0.00035182,2]
[374596879,1753368654346,-26839.4944197,0.00035182,2]
[374596880,1753368654357,-151.0,0.000352,120]
[374596881,1753368654366,-11500.0,0.000352,30]
[374596882,1753368654377,-815.78533023,0.00035204,2]
[374596883,1753368654387,-151.0,0.00035206,7]
[374596884,1753368654397,-168.0,0.00035224,2]
[374596885,1753368654407,-10537.9642492,0.00035232,2]
[374596886,1753368654417,-62938.7473181,0.00035232,2]
[374596887,1753368654428,-3051.2824691,0.00035232,2]
[374596888,1753368654438,-1746.3633504,0.00035232,2]
[374596889,1753368654448,-1615.00424835,0.00035235,2]
[374596890,1753368654458,-52267.2335185,0.00035256,2]
[374596891,1753368654468,-769.3751712,0.00035256,2]
[374596892,1753368654478,-3000.0,0.00035274,7]
[374596893,1753368654488,-3000.0,0.00035274,7]
[374596894,1753368654498,-2456.78322403,0.00035278,2]
[374596895,1753368654508,-1000.0,0.00035279,2]
[374596896,1753368654518,-512.5,0.0003528,45]
[374596897,1753368654527,-305.20023,0.00035288,7]
[374596898,1753368654537,-255.28098652,0.00035291,30]
[374596899,1753368654547,-193.34989762,0.00035291,30]
[374596900,1753368654557,-316.65059519,0.00035291,30]
[374596901,1753368654570,-151.0,0.000353,7]
[374596902,1753368654579,-2155.1,0.000353,7]
[374596903,1753368654589,-282.96,0.000353,14]
[374596904,1753368654599,-1615.00424835,0.00035318,2]
[374596905,1753368654610,-157.42289238,0.0003532,15]
[374596906,1753368654619,-3696.69266291,0.00035327,2]
[374596907,1753368654629,-150.0,0.00035328,2]
[374596908,1753368654639,-150.0,0.00035343,2]
[374596909,1753368654649,-500.0,0.00035343,2]
[374596910,1753368654658,-150.0,0.00035343,2]
[374596911,1753368654668,-500.0,0.00035343,2]
[374596912,1753368654677,-500.0,0.00035343,2]
[374596913,1753368654687,-500.0,0.00035343,2]
[374596914,1753368654697,-1256.95,0.00035349,30]
[374596915,1753368654706,-1256.95,0.00035349,30]
[374596916,1753368654716,-200.0,0.0003535,2]
[374596917,1753368654725,-200.0,0.0003535,2]
[374596918,1753368654735,-815.78533023,0.00035356,2]
[374596919,1753368654744,-10578.3524865,0.00035376,2]
[374596920,1753368654755,-61497.4991495,0.00035376,2]
[374596921,1753368654766,-2981.4104831,0.00035376,2]
[374596922,1753368654775,-1362.2456024,0.00035376,2]
[374596923,1753368654785,-512.5,0.0003538,64]
[374596924,1753368654795,-7000.0,0.0003538,2]
[374596925,1753368654804,-215.317448,0.00035386,7]
[374596926,1753368654816,-215.317448,0.00035386,7]
[374596927,1753368654826,-397.362853,0.00035386,7]
[374596928,1753368654836,-151.0,0.00035386,7]
[374596929,1753368654846,-151.0,0.0003539,7]
[374596930,1753368654855,-151.0,0.0003539,7]
[374596931,1753368654865,-366.1987029,0.00035391,2]
[374596932,1753368654875,-19542.40575465,0.000354,30]
[374596933,1753368654891,-34295.27,0.000354,14]
[374596934,1753368654902,-1615.00424835,0.000354,2]
[374596935,1753368654912,-500.0,0.00035421,5]
[374596936,1753368654922,-300.0,0.00035433,10]
[374596937,1753368654933,-300.0,0.00035436,10]
[374596938,1753368654942,-13553.1,0.00035447,9]
[374596939,1753368654954,-150.0,0.00035454,120]
[374596940,1753368654966,-52267.2335185,0.00035462,2]
[374596941,1753368654976,-769.3751712,0.00035462,2]
[374596942,1753368654986,-2456.78322403,0.00035463,2]
[374596943,1753368654996,-512.5,0.0003548,49]
[374596944,1753368655005,-1615.00424835,0.00035482,2]
[374596945,1753368655016,-305.20023,0.00035488,7]
[374596946,1753368655026,-10618.7407238,0.00035488,2]
[374596947,1753368655038,-60056.250981,0.00035488,2]
[374596948,1753368655050,-2911.5384971,0.00035488,2]
[374596949,1753368655060,-978.1278544,0.00035488,2]
[374596950,1753368655071,-8000.0,0.000355,120]
[374596951,1753368655080,-1474.49,0.000355,14]
[374596952,1753368655090,-151.0,0.000355,7]
[374596953,1753368655100,-151.0,0.000355,7]
[374596954,1753368655110,-207.196132,0.000355,7]
[374596955,1753368655119,-207.196132,0.000355,7]
[374596956,1753368655129,-800.0,0.000355,12]
[374596957,1753368655139,-815.78533023,0.00035508,2]
[374596958,1753368655148,-20091.9207427,0.00035512,2]
[374596959,1753368655158,-52267.2335185,0.00035512,2]
[374596960,1753368655168,-52267.2335185,0.00035512,2]
[374596961,1753368655177,-769.3751712,0.00035512,2]
[374596962,1753368655186,-769.3751712,0.00035512,2]
[374596963,1753368655196,-1860.0,0.00035516,2]
[374596964,1753368655205,-500.0,0.00035519,30]
[374596965,1753368655215,-221.45436347,0.00035534,2]
[374596966,1753368655225,-150.0,0.00035541,120]
[374596967,1753368655234,-221.45436347,0.00035555,2]
[374596968,1753368655243,-151.0,0.0003556,7]
[374596969,1753368655253,-215.317448,0.00035561,7]
[374596970,1753368655263,-215.317448,0.00035561,7]
[374596971,1753368655274,-397.362853,0.00035561,7]
[374596972,1753368655283,-207.196132,0.00035561,7]
[374596973,1753368655293,-207.196132,0.00035561,7]
[374596974,1753368655304,-207.196132,0.00035561,7]
[374596975,1753368655315,-207.196132,0.00035561,7]
[374596976,1753368655325,-151.0,0.00035561,7]
[374596977,1753368655336,-165.66415947,0.00035562,7]
[374596978,1753368655345,-1615.00424835,0.00035565,2]
[374596979,1753368655356,-281.359698,0.0003557,7]
[374596980,1753368655365,-151.0,0.0003557,7]
[374596981,1753368655376,-221.45436347,0.00035575,2]
[374596982,1753368655386,-512.5,0.0003558,59]
[374596983,1753368655395,-215.317448,0.00035585,7]
[374596984,1753368655405,-215.317448,0.00035585,7]
[374596985,1753368655415,-397.362853,0.00035585,7]
[374596986,1753368655425,-151.0,0.00035585,7]
[374596987,1753368655435,-207.196132,0.00035586,7]
[374596988,1753368655446,-207.196127,0.00035586,7]
[374596989,1753368655456,-1000.0,0.000356,7]
[374596990,1753368655466,-800.0,0.000356,12]
[374596991,1753368655476,-508.0,0.00035602,11]
[374596992,1753368655485,-300.0,0.00035608,10]
[374596993,1753368655495,-674.85255967,0.00035609,10]
[374596994,1753368655505,-151.0,0.00035609,7]
[374596995,1753368655514,-151.0,0.00035609,7]
[374596996,1753368655524,-215.317448,0.00035609,7]
[374596997,1753368655534,-215.317442,0.00035609,7]
[374596998,1753368655543,-397.362849,0.00035609,7]
[374596999,1753368655554,-151.0,0.00035609,7]
[374597000,1753368655564,-400.0,0.00035615,120]
[374597001,1753368655574,-219.7,0.00035615,120]
[374597002,1753368655584,-480.0,0.00035615,120]
[374597003,1753368655594,-400.0,0.00035615,120]
[374597004,1753368655603,-400.0,0.00035615,120]
[374597005,1753368655613,-480.0,0.00035615,120]
[374597006,1753368655623,-533.0,0.00035616,120]
[374597007,1753368655633,-522.0,0.00035616,120]
[374597008,1753368655643,-888.0,0.00035616,120]
[374597009,1753368655653,-357.0152512,0.00035616,120]
[374597010,1753368655663,-713.75774222,0.00035617,7]
[374597011,1753368655672,-500.0,0.00035617,2]
[374597012,1753368655682,-150.0,0.00035617,2]
[374597013,1753368655691,-500.0,0.00035617,2]
[374597014,1753368655701,-500.0,0.00035617,2]
[374597015,1753368655711,-1400.24,0.00035619,120]
[374597016,1753368655721,-508.13653967,0.00035622,120]
[374597017,1753368655730,-1256.95,0.00035623,30]
[374597018,1753368655740,-1256.95,0.00035623,30]
[374597019,1753368655750,-7000.0,0.0003563,2]
[374597020,1753368655759,-300.0,0.00035633,10]
[374597021,1753368655769,-151.0,0.00035633,7]
[374597022,1753368655779,-151.0,0.00035633,7]
[374597023,1753368655789,-594.30652576,0.00035634,120]
[374597024,1753368655799,-956.63753231,0.00035634,2]
[374597025,1753368655809,-956.63753231,0.00035634,2]
[374597026,1753368655820,-156876.70627025,0.00035634,2]
[374597027,1753368655830,-156876.70627025,0.00035634,2]
[374597028,1753368655839,-156876.70627025,0.00035634,2]
[374597029,1753368655849,-156876.70627025,0.00035634,2]
[374597030,1753368655859,-165.91514509,0.00035634,50]
[374597031,1753368655869,-1000.0,0.00035634,120]
[374597032,1753368655879,-169.901262,0.00035634,7]
[374597033,1753368655892,-151.0,0.00035634,7]
[374597034,1753368655901,-151.0,0.00035634,7]
[374597035,1753368655911,-151.0,0.00035634,7]
[374597036,1753368655920,-151.0,0.00035634,7]
[374597037,1753368655931,-226.66210566,0.00035634,2]
[374597038,1753368655940,-226.66210566,0.00035634,2]
[374597039,1753368655950,-2937.0,0.0003564,120]
[374597040,1753368655960,-700.0,0.00035642,120]
[374597041,1753368655969,-351.57,0.00035644,2]
[374597042,1753368655980,-1615.00424835,0.00035647,2]
[374597043,1753368655989,-157.42289238,0.00035647,15]
[374597044,1753368655999,-612.50964953,0.00035647,37]
[374597045,1753368656009,-366.1987029,0.00035647,2]
[374597046,1753368656019,-2456.78322403,0.00035647,2]
[374597047,1753368656029,-255.28,0.00035647,30]
[374597048,1753368656039,-193.34,0.00035647,30]
[374597049,1753368656049,-316.65,0.00035647,30]
[374597050,1753368656058,-3696.69266291,0.0003566,2]
[374597051,1753368656069,-815.78533023,0.0003566,2]
[374597052,1753368656078,-157.37046024,0.0003566,8]
[374597053,1753368656088,-500.0,0.00035662,7]
[374597054,1753368656098,-1300.0,0.00035662,7]
[374597055,1753368656108,-500.0,0.00035662,7]
[374597056,1753368656118,-500.0,0.00035662,7]
[374597057,1753368656129,-1300.0,0.00035662,7]
[374597058,1753368656139,-500.0,0.00035662,7]
[374597059,1753368656149,-500.0,0.00035662,7]
[374597060,1753368656160,-500.0,0.00035662,7]
[374597061,1753368656171,-1300.0,0.00035662,7]
[374597062,1753368656182,-500.0,0.00035662,7]
[374597063,1753368656194,-500.0,0.00035662,7]
[374597064,1753368656205,-1300.0,0.00035662,7]
[374597065,1753368656216,-500.0,0.00035662,7]
[374597066,1753368656226,-500.0,0.00035662,7]
[374597067,1753368656236,-800.0,0.00035662,7]
[374597068,1753368656245,-500.0,0.00035662,7]
[374597069,1753368656258,-1300.0,0.00035662,7]
[374597070,1753368656268,-500.0,0.00035662,7]
[374597071,1753368656284,-800.0,0.00035662,7]
[374597072,1753368656295,-2100.0,0.00035662,7]
[374597073,1753368656304,-500.0,0.00035662,7]
[374597074,1753368656315,-500.0,0.00035662,7]
[374597075,1753368656325,-500.0,0.00035662,7]
[374597076,1753368656335,-800.0,0.00035662,7]
[374597077,1753368656344,-1300.0,0.00035662,7]
[374597078,1753368656354,-500.0,0.00035662,7]
[374597079,1753368656363,-500.0,0.00035662,7]
[374597080,1753368656374,-2100.0,0.00035662,7]
[374597081,1753368656384,-800.0,0.00035662,7]
[374597082,1753368656394,-1300.0,0.00035662,7]
[374597083,1753368656404,-708.87395839,0.00035662,7]
[374597084,1753368656414,-1300.0,0.00035662,7]
[374597085,1753368656424,-800.0,0.00035662,7]
[374597086,1753368656435,-500.0,0.00035662,7]
[374597087,1753368656444,-2100.0,0.00035662,7]
[374597088,1753368656456,-1300.0,0.00035662,7]
[374597089,1753368656466,-500.0,0.00035662,7]
[374597090,1753368656477,-500.0,0.00035662,7]
[374597091,1753368656487,-2100.0,0.00035662,7]
[374597092,1753368656497,-593.01459384,0.00035662,7]
[374597093,1753368656507,-1300.0,0.00035662,7]
[374597094,1753368656517,-500.0,0.00035662,7]
[374597095,1753368656527,-800.0,0.00035662,7]
[374597096,1753368656536,-2100.0,0.00035662,7]
[374597097,1753368656546,-1300.0,0.00035662,7]
[374597098,1753368656556,-500.0,0.00035662,7]
[374597099,1753368656566,-800.0,0.00035662,7]
[374597100,1753368656576,-2100.0,0.00035662,7]
[374597101,1753368656586,-500.0,0.00035662,7]
[374597102,1753368656596,-576.4683274,0.00035662,7]
[374597103,1753368656605,-503.36424858,0.00035662,7]
[374597104,1753368656615,-1300.0,0.00035662,7]
[374597105,1753368656624,-2000.0,0.00035662,7]
[374597106,1753368656938,-667.14186315,0.00035662,7]
[374597107,1753368656949,-500.0,0.00035662,7]
[374597108,1753368656960,-800.0,0.00035662,7]
[374597109,1753368656970,-272.95031291,0.00035662,7]
[374597110,1753368656980,-2000.0,0.00035662,7]
[374597111,1753368656992,-2100.0,0.00035662,7]
[374597112,1753368657003,-1300.0,0.00035662,7]
[374597113,1753368657013,-2000.0,0.00035662,7]
[374597114,1753368657023,-2000.0,0.00035662,7]
[374597115,1753368657033,-1300.0,0.00035662,7]
[374597116,1753368657043,-715.84754463,0.00035662,7]
[374597117,1753368657052,-2100.0,0.00035662,7]
[374597118,1753368657062,-165.6170455,0.00035662,7]
[374597119,1753368657072,-1300.0,0.00035662,7]
[374597120,1753368657082,-2000.0,0.00035662,7]
[374597121,1753368657092,-500.0,0.00035662,7]
[374597122,1753368657102,-2100.0,0.00035662,7]
[374597123,1753368657111,-500.0,0.00035662,7]
[374597124,1753368657121,-1300.0,0.00035662,7]
[374597125,1753368657131,-2000.0,0.00035662,7]
[374597126,1753368657141,-500.0,0.00035662,7]
[374597127,1753368657151,-2100.0,0.00035662,7]
[374597128,1753368657161,-1300.0,0.00035662,7]
[374597129,1753368657171,-2000.0,0.00035662,7]
[374597130,1753368657181,-1100.0,0.00035662,7]
[374597131,1753368657191,-1300.0,0.00035662,7]
[374597132,1753368657200,-2100.0,0.00035662,7]
[374597133,1753368657210,-2000.0,0.00035662,7]
[374597134,1753368657221,-990.592782,0.00035662,7]
[374597135,1753368657231,-1100.0,0.00035662,7]
[374597136,1753368657241,-800.0,0.00035662,7]
[374597137,1753368657251,-500.0,0.00035662,7]
[374597138,1753368657261,-2000.0,0.00035662,7]
[374597139,1753368657271,-2100.0,0.00035662,7]
[374597140,1753368657281,-1100.0,0.00035662,7]
[374597141,1753368657291,-500.0,0.00035662,7]
[374597142,1753368657300,-2000.0,0.00035662,7]
[374597143,1753368657310,-2100.0,0.00035662,7]
[374597144,1753368657321,-1100.0,0.00035662,7]
[374597145,1753368657332,-1300.0,0.00035662,7]
[374597146,1753368657342,-800.0,0.00035662,7]
[374597147,1753368657352,-2000.0,0.00035662,7]
[374597148,1753368657362,-2100.0,0.00035662,7]
[374597149,1753368657372,-1100.0,0.00035662,7]
[374597150,1753368657381,-1300.0,0.00035662,7]
[374597151,1753368657391,-3000.0,0.00035662,7]
[374597152,1753368657401,-500.0,0.00035662,7]
[374597153,1753368657411,-2000.0,0.00035662,7]
[374597154,1753368657420,-2100.0,0.00035662,7]
[374597155,1753368657430,-3000.0,0.00035662,7]
[374597156,1753368657440,-800.0,0.00035662,7]
[374597157,1753368657450,-1300.0,0.00035662,7]
[374597158,1753368657459,-500.0,0.00035662,7]
[374597159,1753368657470,-500.0,0.00035662,7]
[374597160,1753368657479,-2000.0,0.00035662,7]
[374597161,1753368657490,-2100.0,0.00035662,7]
[374597162,1753368657500,-178.3437469,0.00035662,7]
[374597163,1753368657510,-3000.0,0.00035662,7]
[374597164,1753368657520,-800.0,0.00035662,7]
[374597165,1753368657530,-1300.0,0.00035662,7]
[374597166,1753368657540,-500.0,0.00035662,7]
[374597167,1753368657549,-161.99498288,0.00035662,7]
[374597168,1753368657559,-1100.0,0.00035662,7]
[374597169,1753368657570,-2000.0,0.00035662,7]
[374597170,1753368657580,-2100.0,0.00035662,7]
[374597171,1753368657590,-3000.0,0.00035662,7]
[374597172,1753368657599,-800.0,0.00035662,7]
[374597173,1753368657609,-1300.0,0.00035662,7]
[374597174,1753368657619,-500.0,0.00035662,7]
[374597175,1753368657629,-2100.0,0.00035662,7]
[374597176,1753368657639,-2000.0,0.00035662,7]
[374597177,1753368657649,-3000.0,0.00035662,7]
[374597178,1753368657659,-800.0,0.00035662,7]
[374597179,1753368657669,-500.0,0.00035662,7]
[374597180,1753368657679,-1300.0,0.00035662,7]
[374597181,1753368657689,-500.0,0.00035662,7]
[374597182,1753368657698,-2100.0,0.00035662,7]
[374597183,1753368657709,-1100.0,0.00035662,7]
[374597184,1753368657718,-2000.0,0.00035662,7]
[374597185,1753368657729,-3000.0,0.00035662,7]
[374597186,1753368657739,-800.0,0.00035662,7]
[374597187,1753368657748,-500.0,0.00035662,7]
[374597188,1753368657758,-1300.0,0.00035662,7]
[374597189,1753368657767,-500.0,0.00035662,7]
[374597190,1753368657777,-190.67287404,0.00035662,7]
[374597191,1753368657787,-1100.0,0.00035662,7]
[374597192,1753368657796,-2000.0,0.00035662,7]
[374597193,1753368657806,-3000.0,0.00035662,7]
[374597194,1753368657816,-800.0,0.00035662,7]
[374597195,1753368657826,-2100.0,0.00035662,7]
[374597196,1753368657835,-500.0,0.00035662,7]
[374597197,1753368657847,-1300.0,0.00035662,7]
[374597198,1753368657857,-500.0,0.00035662,7]
[374597199,1753368657866,-194.78766412,0.00035662,7]
[374597200,1753368657876,-800.0,0.00035662,7]
[374597201,1753368657888,-2000.0,0.00035662,7]
[374597202,1753368657898,-2100.0,0.00035662,7]
[374597203,1753368657907,-3000.0,0.00035662,7]
[374597204,1753368657917,-1300.0,0.00035662,7]
[374597205,1753368657927,-1100.0,0.00035662,7]
[374597206,1753368657937,-500.0,0.00035662,7]
[374597207,1753368657947,-500.0,0.00035662,7]
[374597208,1753368657957,-500.0,0.00035662,7]
[374597209,1753368657970,-800.0,0.00035662,7]
[374597210,1753368657980,-2100.0,0.00035662,7]
[374597211,1753368657991,-2000.0,0.00035662,7]
[374597212,1753368658000,-1100.0,0.00035662,7]
[374597213,1753368658010,-3000.0,0.00035662,7]
[374597214,1753368658021,-214.83572764,0.00035662,7]
[374597215,1753368658031,-976.97588839,0.00035662,7]
[374597216,1753368658041,-500.0,0.00035662,7]
[374597217,1753368658051,-744.93223887,0.00035662,7]
[374597218,1753368658064,-514.54105023,0.00035662,7]
[374597219,1753368658074,-800.0,0.00035662,7]
[374597220,1753368658083,-2100.0,0.00035662,7]
[374597221,1753368658093,-3000.0,0.00035662,7]
[374597222,1753368658103,-2000.0,0.00035662,7]
[374597223,1753368658113,-1100.0,0.00035662,7]
[374597224,1753368658122,-500.0,0.00035662,7]
[374597225,1753368658132,-1329.03658397,0.00035662,7]
[374597226,1753368658142,-500.0,0.00035662,7]
[374597227,1753368658151,-800.0,0.00035662,7]
[374597228,1753368658161,-2100.0,0.00035662,7]